[Event "Early-Titled-Tuesday-Blitz-October-10-2023"]
[Site "Chess.com"]
[Date "2023.10.10"]
[Round "8"]
[White "Tonychess32"]
[Black "LileKoridze"]
[Result "1-0"]
[WhiteElo "2501"]
[BlackElo "2345"]
[TimeControl "180+1"]
[EndTime "9:26:52 PDT"]
[Termination "Tonychess32 won on time"]

1. e4 {[%clk 0:03:00.9]} 1... c5 {[%clk 0:02:58.6]} 2. Nf3 {[%clk 0:03:00.7]}
2... d6 {[%clk 0:02:56.9]} 3. c3 {[%clk 0:02:59.7]} 3... Nf6 {[%clk 0:02:56.6]}
4. Bd3 {[%clk 0:02:58.5]} 4... g6 {[%clk 0:02:55.9]} 5. O-O {[%clk 0:02:58.6]}
5... Bg7 {[%clk 0:02:55.5]} 6. Re1 {[%clk 0:02:58.9]} 6... O-O {[%clk
0:02:54.5]} 7. Bc2 {[%clk 0:02:59.3]} 7... a6 {[%clk 0:02:52.7]} 8. d4 {[%clk
0:02:59.1]} 8... cxd4 {[%clk 0:02:52.8]} 9. cxd4 {[%clk 0:02:59.1]} 9... e6
{[%clk 0:02:51.7]} 10. Nc3 {[%clk 0:02:58.9]} 10... Nbd7 {[%clk 0:02:49.9]} 11.
Bf4 {[%clk 0:02:58]} 11... d5 {[%clk 0:02:45.2]} 12. e5 {[%clk 0:02:55.6]} 12...
Ne8 {[%clk 0:02:40.2]} 13. Qd2 {[%clk 0:02:51.2]} 13... Nc7 {[%clk 0:02:30.3]}
14. Rac1 {[%clk 0:02:47.5]} 14... b5 {[%clk 0:02:29.1]} 15. Bg5 {[%clk
0:02:37.3]} 15... Qe8 {[%clk 0:02:28.5]} 16. Nd1 {[%clk 0:02:12.2]} 16... Bb7
{[%clk 0:02:25]} 17. Ne3 {[%clk 0:02:12.1]} 17... Rc8 {[%clk 0:02:24.6]} 18. Ng4
{[%clk 0:02:12.3]} 18... f5 {[%clk 0:02:07.9]} 19. exf6 {[%clk 0:02:12.3]} 19...
Nxf6 {[%clk 0:02:07.7]} 20. Nxf6+ {[%clk 0:02:07.8]} 20... Bxf6 {[%clk
0:02:07.7]} 21. Bxf6 {[%clk 0:01:57]} 21... Rxf6 {[%clk 0:02:07.4]} 22. Bd3
{[%clk 0:01:53.1]} 22... Qe7 {[%clk 0:02:03]} 23. Re2 {[%clk 0:01:43.9]} 23...
Rcf8 {[%clk 0:02:00]} 24. Rce1 {[%clk 0:01:41.7]} 24... Bc8 {[%clk 0:01:24.4]}
25. Ne5 {[%clk 0:01:30.2]} 25... Qd6 {[%clk 0:01:01.7]} 26. g3 {[%clk
0:01:18.2]} 26... Ne8 {[%clk 0:00:58.8]} 27. f4 {[%clk 0:01:18.1]} 27... Ng7
{[%clk 0:00:57.9]} 28. h4 {[%clk 0:01:11.9]} 28... Nf5 {[%clk 0:00:56.9]} 29.
Bxf5 {[%clk 0:01:10.2]} 29... Rxf5 {[%clk 0:00:48.6]} 30. Qc3 {[%clk 0:01:05.2]}
30... Qe7 {[%clk 0:00:22.9]} 31. Ng4 {[%clk 0:01:01.9]} 31... Qg7 {[%clk
0:00:20]} 32. Re5 {[%clk 0:00:50.9]} 32... Bd7 {[%clk 0:00:19.5]} 33. Rxf5
{[%clk 0:00:50.4]} 33... gxf5 {[%clk 0:00:19.2]} 34. Ne5 {[%clk 0:00:50.6]}
34... Be8 {[%clk 0:00:18.2]} 35. Kh2 {[%clk 0:00:48.8]} 35... Kh8 {[%clk
0:00:17.7]} 36. Rc1 {[%clk 0:00:47.7]} 36... Rg8 {[%clk 0:00:18]} 37. Qe3 {[%clk
0:00:47.3]} 37... Bh5 {[%clk 0:00:17.1]} 38. Rc6 {[%clk 0:00:45.4]} 38... Qe7
{[%clk 0:00:15.5]} 39. Nd3 {[%clk 0:00:43.8]} 39... Be8 {[%clk 0:00:04.8]} 40.
Qe5+ {[%clk 0:00:43.7]} 40... Qg7 {[%clk 0:00:02]} 41. Rxe6 {[%clk 0:00:43.3]}
1-0

[Event "Early-Titled-Tuesday-Blitz-October-10-2023"]
[Site "Chess.com"]
[Date "2023.10.10"]
[Round "8"]
[White "Krakozia"]
[Black "ActorXu"]
[Result "0-1"]
[WhiteElo "2981"]
[BlackElo "2753"]
[TimeControl "180+1"]
[EndTime "9:26:53 PDT"]
[Termination "ActorXu won on time"]

1. c4 {[%clk 0:03:00.9]} 1... Nf6 {[%clk 0:02:58.7]} 2. Nc3 {[%clk 0:03:01.3]}
2... e6 {[%clk 0:02:59.4]} 3. Nf3 {[%clk 0:02:59.4]} 3... d5 {[%clk 0:02:59.5]}
4. e3 {[%clk 0:02:59.8]} 4... b6 {[%clk 0:02:59]} 5. d4 {[%clk 0:02:58]} 5...
Bb7 {[%clk 0:02:59.3]} 6. cxd5 {[%clk 0:02:57.6]} 6... exd5 {[%clk 0:02:59.3]}
7. Bb5+ {[%clk 0:02:58.3]} 7... c6 {[%clk 0:02:57.8]} 8. Bd3 {[%clk 0:02:58.6]}
8... Bd6 {[%clk 0:02:58]} 9. O-O {[%clk 0:02:57.4]} 9... Nbd7 {[%clk 0:02:58.4]}
10. e4 {[%clk 0:02:55.3]} 10... dxe4 {[%clk 0:02:57.5]} 11. Nxe4 {[%clk
0:02:52.5]} 11... Nxe4 {[%clk 0:02:57.2]} 12. Bxe4 {[%clk 0:02:46.8]} 12... Nf6
{[%clk 0:02:55.7]} 13. Bg5 {[%clk 0:02:43.7]} 13... h6 {[%clk 0:02:53.9]} 14.
Bxf6 {[%clk 0:02:34]} 14... Qxf6 {[%clk 0:02:53.8]} 15. Ne5 {[%clk 0:02:32.7]}
15... O-O {[%clk 0:02:36.8]} 16. f4 {[%clk 0:02:31.9]} 16... Rfd8 {[%clk
0:02:28.7]} 17. Qf3 {[%clk 0:02:30.2]} 17... Rac8 {[%clk 0:02:23.6]} 18. Rad1
{[%clk 0:02:26.5]} 18... Ba6 {[%clk 0:01:51.1]} 19. Rfe1 {[%clk 0:02:19.4]}
19... c5 {[%clk 0:01:51]} 20. Bd5 {[%clk 0:01:36.6]} 20... Rc7 {[%clk
0:01:49.9]} 21. g3 {[%clk 0:01:32.3]} 21... cxd4 {[%clk 0:01:47.6]} 22. Ng4
{[%clk 0:01:16.5]} 22... Qf5 {[%clk 0:01:40.1]} 23. Be4 {[%clk 0:01:16.3]} 23...
Qc8 {[%clk 0:01:28.8]} 24. f5 {[%clk 0:01:00.7]} 24... Bc5 {[%clk 0:01:14.4]}
25. f6 {[%clk 0:00:56.6]} 25... d3+ {[%clk 0:01:12.4]} 26. Kh1 {[%clk
0:00:55.9]} 26... d2 {[%clk 0:01:12.6]} 27. fxg7 {[%clk 0:00:40.3]} 27...
dxe1=Q+ {[%clk 0:01:11.2]} 28. Rxe1 {[%clk 0:00:41.2]} 28... Rd6 {[%clk
0:01:02.3]} 29. Nf6+ {[%clk 0:00:26.8]} 29... Kxg7 {[%clk 0:00:45.4]} 30. Nh5+
{[%clk 0:00:24.2]} 30... Kf8 {[%clk 0:00:43.4]} 31. Nf6 {[%clk 0:00:16.2]} 31...
Bd4 {[%clk 0:00:42]} 32. Nd5 {[%clk 0:00:06]} 32... Rc1 {[%clk 0:00:30.6]} 0-1

[Event "Early-Titled-Tuesday-Blitz-October-10-2023"]
[Site "Chess.com"]
[Date "2023.10.10"]
[Round "8"]
[White "Barmen_EV"]
[Black "rikchessmx"]
[Result "1-0"]
[WhiteElo "2494"]
[BlackElo "2311"]
[TimeControl "180+1"]
[EndTime "9:26:54 PDT"]
[Termination "Barmen_EV won on time"]

1. e4 {[%clk 0:02:54]} 1... c5 {[%clk 0:02:44.6]} 2. c3 {[%clk 0:02:53.9]} 2...
e6 {[%clk 0:02:40.8]} 3. d4 {[%clk 0:02:53.9]} 3... d5 {[%clk 0:02:39.6]} 4. Nd2
{[%clk 0:02:54]} 4... Nc6 {[%clk 0:02:39.3]} 5. Ngf3 {[%clk 0:02:53.2]} 5...
cxd4 {[%clk 0:02:37.5]} 6. cxd4 {[%clk 0:02:53.8]} 6... dxe4 {[%clk 0:02:37.9]}
7. Nxe4 {[%clk 0:02:54.7]} 7... Nf6 {[%clk 0:02:36.8]} 8. Nc3 {[%clk 0:02:55.2]}
8... Bb4 {[%clk 0:02:36.2]} 9. Bd3 {[%clk 0:02:55.3]} 9... O-O {[%clk
0:02:35.4]} 10. O-O {[%clk 0:02:55.5]} 10... b6 {[%clk 0:02:33.5]} 11. Bc2
{[%clk 0:02:54.4]} 11... Bb7 {[%clk 0:02:32.2]} 12. Qd3 {[%clk 0:02:52.6]} 12...
Be7 {[%clk 0:02:31.3]} 13. a3 {[%clk 0:02:50.1]} 13... Nb8 {[%clk 0:02:21.2]}
14. Bg5 {[%clk 0:02:39.7]} 14... g6 {[%clk 0:02:20.4]} 15. Rfe1 {[%clk
0:02:39.1]} 15... Ba6 {[%clk 0:02:19.2]} 16. Qd2 {[%clk 0:02:33.6]} 16... Nc6
{[%clk 0:02:10.1]} 17. Rad1 {[%clk 0:02:31.2]} 17... Nd5 {[%clk 0:02:06.2]} 18.
Nxd5 {[%clk 0:02:10.3]} 18... Qxd5 {[%clk 0:01:52.5]} 19. Bxe7 {[%clk 0:02:05]}
19... Nxe7 {[%clk 0:01:50.9]} 20. Be4 {[%clk 0:02:05.3]} 20... Qd7 {[%clk
0:01:41]} 21. Bxa8 {[%clk 0:02:04.4]} 21... Rxa8 {[%clk 0:01:41.4]} 22. Ne5
{[%clk 0:02:04.9]} 22... Qd5 {[%clk 0:01:41.4]} 23. Ng4 {[%clk 0:02:03.6]} 23...
Kh8 {[%clk 0:01:11.9]} 24. Qf4 {[%clk 0:01:58.2]} 24... Nf5 {[%clk 0:01:04.3]}
25. Qe5+ {[%clk 0:01:55.5]} 25... Qxe5 {[%clk 0:01:02.6]} 26. dxe5 {[%clk
0:01:56.4]} 26... Bc4 {[%clk 0:00:58]} 27. Rd7 {[%clk 0:01:51.5]} 27... Kg7
{[%clk 0:00:57.2]} 28. Rc1 {[%clk 0:01:47.7]} 28... b5 {[%clk 0:00:52.8]} 29. b3
{[%clk 0:01:40.3]} 29... Bxb3 {[%clk 0:00:51.1]} 30. Rcc7 {[%clk 0:01:39.9]}
30... Rf8 {[%clk 0:00:50.2]} 31. Rxa7 {[%clk 0:01:39.6]} 31... h5 {[%clk
0:00:43.3]} 32. Nf6 {[%clk 0:01:38.9]} 32... Nh6 {[%clk 0:00:43.4]} 33. h3
{[%clk 0:01:34.4]} 33... Rc8 {[%clk 0:00:39.8]} 34. g4 {[%clk 0:01:26]} 34...
hxg4 {[%clk 0:00:31.2]} 35. hxg4 {[%clk 0:01:26.7]} 35... Rf8 {[%clk 0:00:29.6]}
36. f4 {[%clk 0:01:14.1]} 36... Bc4 {[%clk 0:00:22.6]} 37. Kf2 {[%clk
0:01:12.9]} 37... Bb3 {[%clk 0:00:19.1]} 38. Kg3 {[%clk 0:01:12.9]} 38... Bc4
{[%clk 0:00:19.2]} 39. Kf2 {[%clk 0:01:04.2]} 39... Bb3 {[%clk 0:00:19]} 40.
Rab7 {[%clk 0:01:04.8]} 40... Bc4 {[%clk 0:00:18]} 41. Rdc7 {[%clk 0:00:51.5]}
41... Bd3 {[%clk 0:00:04.5]} 42. Ke3 {[%clk 0:00:48.7]} 42... Bc4 {[%clk
0:00:04.4]} 43. a4 {[%clk 0:00:46.6]} 1-0

[Event "Early-Titled-Tuesday-Blitz-October-10-2023"]
[Site "Chess.com"]
[Date "2023.10.10"]
[Round "8"]
[White "amylazy"]
[Black "ferrufino64"]
[Result "0-1"]
[WhiteElo "2390"]
[BlackElo "2215"]
[TimeControl "180+1"]
[EndTime "9:26:55 PDT"]
[Termination "ferrufino64 won by checkmate"]

1. d4 {[%clk 0:02:51.3]} 1... d5 {[%clk 0:02:43.9]} 2. c4 {[%clk 0:02:50.7]}
2... e6 {[%clk 0:02:27.4]} 3. Nf3 {[%clk 0:02:50]} 3... Nf6 {[%clk 0:02:27.2]}
4. g3 {[%clk 0:02:49]} 4... Be7 {[%clk 0:02:27.2]} 5. Bg2 {[%clk 0:02:49.7]}
5... O-O {[%clk 0:02:27.6]} 6. O-O {[%clk 0:02:50.4]} 6... c6 {[%clk 0:02:28.1]}
7. Qc2 {[%clk 0:02:50.2]} 7... b6 {[%clk 0:02:28.5]} 8. Rd1 {[%clk 0:02:49.9]}
8... Bb7 {[%clk 0:02:28.3]} 9. Bf4 {[%clk 0:02:49.7]} 9... Nbd7 {[%clk
0:02:28.2]} 10. Ne5 {[%clk 0:02:49.8]} 10... Rc8 {[%clk 0:02:27.1]} 11. Nc3
{[%clk 0:02:48.6]} 11... a6 {[%clk 0:02:27.3]} 12. Nxd7 {[%clk 0:02:45.9]} 12...
Qxd7 {[%clk 0:02:22.4]} 13. e4 {[%clk 0:02:46.8]} 13... dxc4 {[%clk 0:02:22.2]}
14. Bg5 {[%clk 0:02:41.1]} 14... Rfd8 {[%clk 0:02:20.2]} 15. Bxf6 {[%clk
0:02:41.1]} 15... Bxf6 {[%clk 0:02:20]} 16. e5 {[%clk 0:02:42]} 16... Be7 {[%clk
0:02:19.7]} 17. Ne4 {[%clk 0:02:42.2]} 17... b5 {[%clk 0:02:19.2]} 18. Nc5
{[%clk 0:02:42.2]} 18... Qc7 {[%clk 0:02:15.3]} 19. Qe4 {[%clk 0:02:38.4]} 19...
Qb6 {[%clk 0:02:13.5]} 20. Qe3 {[%clk 0:02:37.1]} 20... a5 {[%clk 0:02:09.4]}
21. Rac1 {[%clk 0:02:32]} 21... Ba6 {[%clk 0:02:08]} 22. b3 {[%clk 0:02:27.1]}
22... cxb3 {[%clk 0:02:01.4]} 23. axb3 {[%clk 0:02:26.9]} 23... b4 {[%clk
0:01:55.8]} 24. Na4 {[%clk 0:02:25.9]} 24... Qb7 {[%clk 0:01:49.2]} 25. Nc5
{[%clk 0:02:24.6]} 25... Qb6 {[%clk 0:01:49.4]} 26. Qe4 {[%clk 0:02:22.4]} 26...
Bb5 {[%clk 0:01:48.4]} 27. h4 {[%clk 0:02:18.8]} 27... h6 {[%clk 0:01:47.5]} 28.
Qg4 {[%clk 0:02:17.3]} 28... Ra8 {[%clk 0:01:43.3]} 29. Be4 {[%clk 0:02:16.6]}
29... a4 {[%clk 0:01:42.6]} 30. bxa4 {[%clk 0:02:14.4]} 30... Bxa4 {[%clk
0:01:42.8]} 31. Nxa4 {[%clk 0:02:14.5]} 31... Rxa4 {[%clk 0:01:42.9]} 32. Rxc6
{[%clk 0:02:15.1]} 32... Qa7 {[%clk 0:01:37.4]} 33. Bc2 {[%clk 0:02:05.7]} 33...
b3 {[%clk 0:01:36.4]} 34. Bxb3 {[%clk 0:02:03.1]} 34... Raxd4 {[%clk 0:01:36.6]}
35. Rxd4 {[%clk 0:02:03.4]} 35... Rxd4 {[%clk 0:01:26.8]} 36. Qe2 {[%clk
0:01:57.8]} 36... Qd7 {[%clk 0:01:18.8]} 37. Qc2 {[%clk 0:01:56.2]} 37... g6
{[%clk 0:01:17.6]} 38. Kh2 {[%clk 0:01:53]} 38... Bf8 {[%clk 0:01:16]} 39. Rc7
{[%clk 0:01:49.1]} 39... Qd8 {[%clk 0:01:14.3]} 40. Rc8 {[%clk 0:01:45.7]} 40...
Qa5 {[%clk 0:01:14]} 41. Qc1 {[%clk 0:01:40]} 41... Kg7 {[%clk 0:01:06.7]} 42.
Rc7 {[%clk 0:01:38.3]} 42... Qxe5 {[%clk 0:01:04.7]} 43. Qc2 {[%clk 0:01:34.8]}
43... Qd6 {[%clk 0:01:04]} 44. Qc3 {[%clk 0:01:32.6]} 44... e5 {[%clk
0:01:03.3]} 45. Rxf7+ {[%clk 0:01:31.5]} 45... Kh8 {[%clk 0:01:02.3]} 46. Qf3
{[%clk 0:01:24]} 46... Bg7 {[%clk 0:01:00]} 47. Qa8+ {[%clk 0:01:18.5]} 47...
Qd8 {[%clk 0:00:52.9]} 48. Qa7 {[%clk 0:01:16]} 48... Rxh4+ {[%clk 0:00:26.7]}
49. gxh4 {[%clk 0:01:10.4]} 49... Qxh4+ {[%clk 0:00:27.6]} 50. Kg1 {[%clk
0:01:09.8]} 50... Qg5+ {[%clk 0:00:26.8]} 51. Kf1 {[%clk 0:01:08.6]} 51... Qc1+
{[%clk 0:00:27.1]} 52. Kg2 {[%clk 0:01:04.5]} 52... Qg5+ {[%clk 0:00:27.2]} 53.
Kf3 {[%clk 0:01:05]} 53... e4+ {[%clk 0:00:27.3]} 54. Ke2 {[%clk 0:01:04.3]}
54... Qb5+ {[%clk 0:00:26.2]} 55. Ke1 {[%clk 0:01:03.1]} 55... Bc3+ {[%clk
0:00:26]} 56. Kd1 {[%clk 0:01:02.3]} 56... Qd3+ {[%clk 0:00:26.2]} 57. Kc1
{[%clk 0:01:02.2]} 57... Qd2+ {[%clk 0:00:26.8]} 58. Kb1 {[%clk 0:01:03.1]}
58... Qb2# {[%clk 0:00:27.7]} 0-1

[Event "Early-Titled-Tuesday-Blitz-October-10-2023"]
[Site "Chess.com"]
[Date "2023.10.10"]
[Round "8"]
[White "TatjanaVasilevich"]
[Black "krzyzan94"]
[Result "1-0"]
[WhiteElo "2620"]
[BlackElo "2769"]
[TimeControl "180+1"]
[EndTime "9:26:58 PDT"]
[Termination "TatjanaVasilevich won on time"]

1. Nf3 {[%clk 0:03:00.9]} 1... d5 {[%clk 0:02:56.9]} 2. b3 {[%clk 0:03:01.4]}
2... Nf6 {[%clk 0:02:53.4]} 3. Bb2 {[%clk 0:03:01.5]} 3... g6 {[%clk 0:02:52]}
4. g3 {[%clk 0:03:01.8]} 4... Bg7 {[%clk 0:02:52.4]} 5. Bg2 {[%clk 0:03:02.5]}
5... O-O {[%clk 0:02:53.1]} 6. O-O {[%clk 0:03:03.2]} 6... c5 {[%clk 0:02:53.5]}
7. d4 {[%clk 0:02:59.4]} 7... cxd4 {[%clk 0:02:49.4]} 8. Bxd4 {[%clk 0:02:55.3]}
8... Nc6 {[%clk 0:02:49.2]} 9. Bb2 {[%clk 0:02:55.7]} 9... Bf5 {[%clk
0:02:45.7]} 10. Nbd2 {[%clk 0:02:54.3]} 10... Rc8 {[%clk 0:02:42.1]} 11. c4
{[%clk 0:02:54.4]} 11... d4 {[%clk 0:02:35.2]} 12. a3 {[%clk 0:02:47.7]} 12...
a5 {[%clk 0:02:30.7]} 13. b4 {[%clk 0:02:47.7]} 13... axb4 {[%clk 0:02:01.9]}
14. axb4 {[%clk 0:02:48.6]} 14... d3 {[%clk 0:01:53.9]} 15. Qb3 {[%clk 0:02:10]}
15... dxe2 {[%clk 0:01:51.6]} 16. Rfe1 {[%clk 0:02:10.3]} 16... Qd3 {[%clk
0:00:50.9]} 17. Qa4 {[%clk 0:01:21]} 17... Ne4 {[%clk 0:00:36.9]} 18. Ra3 {[%clk
0:01:20.4]} 18... Qd6 {[%clk 0:00:06.7]} 19. Bxg7 {[%clk 0:01:17.8]} 19... Kxg7
{[%clk 0:00:05.7]} 20. c5 {[%clk 0:01:16.8]} 20... Qd5 {[%clk 0:00:02.5]} 21.
Rxe2 {[%clk 0:01:16.8]} 21... Nxd2 {[%clk 0:00:02.4]} 22. Rxd2 {[%clk
0:01:17.7]} 22... Qe6 {[%clk 0:00:02.3]} 23. b5 {[%clk 0:01:16.6]} 23... Ne5
{[%clk 0:00:01.9]} 24. Qd4 {[%clk 0:01:16.2]} 24... f6 {[%clk 0:00:02.1]} 25.
Re3 {[%clk 0:01:13]} 25... Rfd8 {[%clk 0:00:02]} 26. Qxd8 {[%clk 0:01:12.5]}
26... Rxd8 {[%clk 0:00:02.9]} 27. Rxd8 {[%clk 0:01:13.1]} 27... Qc4 {[%clk
0:00:02.5]} 28. h3 {[%clk 0:01:00.2]} 28... Qxc5 {[%clk 0:00:02.7]} 29. Nxe5
{[%clk 0:00:59.2]} 29... fxe5 {[%clk 0:00:02.8]} 30. Rd5 {[%clk 0:00:57.5]}
30... Qc1+ {[%clk 0:00:02.9]} 31. Kh2 {[%clk 0:00:58]} 31... e4 {[%clk
0:00:02.5]} 32. Bxe4 {[%clk 0:00:57.5]} 32... e6 {[%clk 0:00:02.3]} 33. Rd7+
{[%clk 0:00:57.1]} 33... Kf6 {[%clk 0:00:02.9]} 34. Bxf5 {[%clk 0:00:52.9]}
34... exf5 {[%clk 0:00:03.1]} 35. Rxb7 {[%clk 0:00:52.9]} 35... Qd2 {[%clk
0:00:02.8]} 36. Rb6+ {[%clk 0:00:52.7]} 36... Kg5 {[%clk 0:00:02.9]} 37. Kg2
{[%clk 0:00:51.7]} 37... Qd5+ {[%clk 0:00:02.8]} 38. Kh2 {[%clk 0:00:50.7]}
38... Qd2 {[%clk 0:00:02.7]} 39. Rf3 {[%clk 0:00:46.3]} 39... Qe2 {[%clk
0:00:01.5]} 40. Rf4 {[%clk 0:00:44.2]} 40... Kh6 {[%clk 0:00:01.7]} 41. Rb7
{[%clk 0:00:41.1]} 1-0

[Event "Early-Titled-Tuesday-Blitz-October-10-2023"]
[Site "Chess.com"]
[Date "2023.10.10"]
[Round "8"]
[White "angryspacevoid"]
[Black "BeanScreen"]
[Result "0-1"]
[WhiteElo "2520"]
[BlackElo "2719"]
[TimeControl "180+1"]
[EndTime "9:27:01 PDT"]
[Termination "BeanScreen won by checkmate"]

1. e4 {[%clk 0:03:00.9]} 1... e5 {[%clk 0:02:59.7]} 2. Nf3 {[%clk 0:02:59.5]}
2... Nc6 {[%clk 0:03:00]} 3. d4 {[%clk 0:02:57.4]} 3... exd4 {[%clk 0:02:59.9]}
4. Nxd4 {[%clk 0:02:58.3]} 4... Bc5 {[%clk 0:02:59.6]} 5. Nb3 {[%clk 0:02:56.8]}
5... Bb6 {[%clk 0:02:59.8]} 6. Nc3 {[%clk 0:02:56.5]} 6... Nf6 {[%clk
0:02:59.9]} 7. Qe2 {[%clk 0:02:56.2]} 7... O-O {[%clk 0:03:00]} 8. Be3 {[%clk
0:02:55.9]} 8... d5 {[%clk 0:02:49.8]} 9. Bxb6 {[%clk 0:02:30.4]} 9... axb6
{[%clk 0:02:49.1]} 10. O-O-O {[%clk 0:02:25.4]} 10... d4 {[%clk 0:02:37.9]} 11.
Kb1 {[%clk 0:02:20.1]} 11... Be6 {[%clk 0:02:25.2]} 12. Nb5 {[%clk 0:02:16]}
12... Bxb3 {[%clk 0:02:19.7]} 13. cxb3 {[%clk 0:02:13.6]} 13... Re8 {[%clk
0:02:18.2]} 14. f3 {[%clk 0:02:08.2]} 14... Ra5 {[%clk 0:01:34.9]} 15. Qc4
{[%clk 0:02:04.2]} 15... Qe7 {[%clk 0:01:06.6]} 16. g4 {[%clk 0:01:29.4]} 16...
Ne5 {[%clk 0:01:05]} 17. Qxc7 {[%clk 0:01:26]} 17... Nxf3 {[%clk 0:00:58.2]} 18.
Qxb6 {[%clk 0:01:21.5]} 18... Qxe4+ {[%clk 0:00:42]} 19. Bd3 {[%clk 0:01:21]}
19... Nd2+ {[%clk 0:00:40.5]} 20. Kc2 {[%clk 0:01:19.7]} 20... Rc8+ {[%clk
0:00:26.3]} 21. Nc7 {[%clk 0:01:13.2]} 21... Qe5 {[%clk 0:00:22.6]} 22. Kxd2
{[%clk 0:01:09.8]} 22... Rxc7 {[%clk 0:00:17.7]} 23. Bc4 {[%clk 0:00:58]} 23...
Qe3+ {[%clk 0:00:07.5]} 24. Kc2 {[%clk 0:00:55.4]} 24... Qe4+ {[%clk 0:00:06.4]}
25. Kd2 {[%clk 0:00:54.6]} 25... Rxa2 {[%clk 0:00:05.7]} 26. Rb1 {[%clk
0:00:32.6]} 26... Qe3+ {[%clk 0:00:05.7]} 27. Kc2 {[%clk 0:00:32.9]} 27... Qc3+
{[%clk 0:00:03.6]} 28. Kd1 {[%clk 0:00:33]} 28... Qf3+ {[%clk 0:00:03.5]} 29.
Kd2 {[%clk 0:00:29.2]} 29... Qe3+ {[%clk 0:00:03.6]} 30. Kc2 {[%clk 0:00:29.3]}
30... Ne4 {[%clk 0:00:03.4]} 31. Qb4 {[%clk 0:00:21.8]} 31... Qe2+ {[%clk
0:00:03.2]} 32. Kc1 {[%clk 0:00:20.9]} 32... d3 {[%clk 0:00:03.1]} 33. Rd1
{[%clk 0:00:14.1]} 33... Qc2# {[%clk 0:00:03.1]} 0-1

[Event "Early-Titled-Tuesday-Blitz-October-10-2023"]
[Site "Chess.com"]
[Date "2023.10.10"]
[Round "8"]
[White "Byniolus"]
[Black "ChessTankMan"]
[Result "1-0"]
[WhiteElo "2733"]
[BlackElo "2529"]
[TimeControl "180+1"]
[EndTime "9:27:02 PDT"]
[Termination "Byniolus won by resignation"]

1. d4 {[%clk 0:03:00.9]} 1... Nf6 {[%clk 0:02:59.4]} 2. Nf3 {[%clk 0:03:00.9]}
2... e6 {[%clk 0:02:59]} 3. Bf4 {[%clk 0:03:00.7]} 3... c5 {[%clk 0:02:58]} 4.
c3 {[%clk 0:03:00.6]} 4... Nc6 {[%clk 0:02:57.5]} 5. e3 {[%clk 0:03:00.6]} 5...
d5 {[%clk 0:02:55.3]} 6. Nbd2 {[%clk 0:03:00.6]} 6... Bd6 {[%clk 0:02:54.2]} 7.
Bg3 {[%clk 0:03:01.1]} 7... O-O {[%clk 0:02:52.6]} 8. Bd3 {[%clk 0:03:01.2]}
8... Qe7 {[%clk 0:02:31.1]} 9. Ne5 {[%clk 0:03:00.8]} 9... Nd7 {[%clk
0:02:28.6]} 10. Nxc6 {[%clk 0:02:39.1]} 10... bxc6 {[%clk 0:02:27.2]} 11. Qa4
{[%clk 0:02:39.7]} 11... Bb7 {[%clk 0:02:17.1]} 12. Bxd6 {[%clk 0:02:23.6]}
12... Qxd6 {[%clk 0:02:14.6]} 13. Qa3 {[%clk 0:02:24.5]} 13... Rfd8 {[%clk
0:01:59.9]} 14. Nb3 {[%clk 0:02:16.1]} 14... e5 {[%clk 0:01:51.4]} 15. Nxc5
{[%clk 0:01:52.9]} 15... Nxc5 {[%clk 0:01:49.3]} 16. Qxc5 {[%clk 0:01:53.8]}
16... Qxc5 {[%clk 0:01:46]} 17. dxc5 {[%clk 0:01:54.7]} 17... e4 {[%clk
0:01:45.4]} 18. Be2 {[%clk 0:01:47.3]} 18... Kf8 {[%clk 0:01:44.9]} 19. b4
{[%clk 0:01:37.2]} 19... a6 {[%clk 0:01:43.9]} 20. Kd2 {[%clk 0:01:33.7]} 20...
Ke7 {[%clk 0:01:44]} 21. c4 {[%clk 0:01:26.3]} 21... dxc4+ {[%clk 0:01:28]} 22.
Kc3 {[%clk 0:01:25.4]} 22... Bc8 {[%clk 0:01:26.4]} 23. Bxc4 {[%clk 0:01:20.8]}
23... Bg4 {[%clk 0:01:21.2]} 24. h3 {[%clk 0:01:17.3]} 24... Be6 {[%clk
0:01:16.1]} 25. Rhd1 {[%clk 0:01:15.1]} 25... h5 {[%clk 0:01:08]} 26. Rxd8
{[%clk 0:01:05.5]} 26... Rxd8 {[%clk 0:00:55.2]} 27. Bxa6 {[%clk 0:01:00.7]}
27... Ra8 {[%clk 0:00:53.8]} 28. Bc4 {[%clk 0:00:58.2]} 28... Bxc4 {[%clk
0:00:49.6]} 29. Kxc4 {[%clk 0:00:59.1]} 29... Ra3 {[%clk 0:00:49.9]} 30. Kd4
{[%clk 0:00:42.5]} 30... f5 {[%clk 0:00:48.1]} 31. Ke5 {[%clk 0:00:42.9]} 31...
g6 {[%clk 0:00:48.1]} 32. h4 {[%clk 0:00:42.7]} 32... Ra4 {[%clk 0:00:31]} 33.
a3 {[%clk 0:00:41.4]} 33... Ra8 {[%clk 0:00:26.8]} 34. a4 {[%clk 0:00:36.2]}
34... Rd8 {[%clk 0:00:27]} 35. a5 {[%clk 0:00:33.4]} 35... Rd5+ {[%clk
0:00:27.6]} 36. Kf4 {[%clk 0:00:32.5]} 36... Rd2 {[%clk 0:00:28.5]} 37. Kg3
{[%clk 0:00:28.8]} 37... Rb2 {[%clk 0:00:26.7]} 38. a6 {[%clk 0:00:28.4]} 38...
f4+ {[%clk 0:00:27]} 39. exf4 {[%clk 0:00:26.3]} 39... Rb3+ {[%clk 0:00:27.6]}
40. Kh2 {[%clk 0:00:26.4]} 40... e3 {[%clk 0:00:28.2]} 41. fxe3 {[%clk
0:00:25.6]} 41... Ke6 {[%clk 0:00:25.3]} 42. a7 {[%clk 0:00:25.7]} 42... Ra3
{[%clk 0:00:21.5]} 43. Rxa3 {[%clk 0:00:25.4]} 1-0